[Event "Titled Tuesday Blitz November 30 2021"]
[White "Arencibia Monduy, Antonio"]
[Black "Donchenko, Alexander"]
[WhiteFideId "3507939"]
[BlackFideId "24603295"]
[WhiteElo "2550"]
[BlackElo "2490"]
[Result "0-1"]
[Round "03"]
[TimeControl "180+1"]
[Date "2021.11.30"]
[WhiteClock "0:00:02"]
[BlackClock "0:01:03"]

1. c4 {[%clk 0:03:00]}  Nf6 {[%clk 0:02:18]} 2. g3 {[%clk 0:02:59]}  e6 {[%clk 0:02:17]} 3. Bg2 {[%clk 0:02:59]}  d5 {[%clk 0:02:18]} 4. cxd5 {[%clk 0:02:51]}  exd5 {[%clk 0:02:18]} 5. Nf3 {[%clk 0:02:52]}  Bd6 {[%clk 0:02:17]} 6. O-O {[%clk 0:02:52]}  O-O {[%clk 0:02:17]} 7. b3 {[%clk 0:02:52]}  Qe7 {[%clk 0:02:16]} 8. Bb2 {[%clk 0:02:52]}  c6 {[%clk 0:02:16]} 9. d3 {[%clk 0:02:46]}  Re8 {[%clk 0:02:15]} 10. e3 {[%clk 0:02:43]}  a5 {[%clk 0:02:15]} 11. h3 {[%clk 0:02:40]}  Nbd7 {[%clk 0:02:11]} 12. Nc3 {[%clk 0:02:40]}  Ba3 {[%clk 0:02:09]} 13. Qc1 {[%clk 0:02:37]}  Bxb2 {[%clk 0:02:09]} 14. Qxb2 {[%clk 0:02:38]}  Nc5 {[%clk 0:02:08]} 15. Rfd1 {[%clk 0:02:34]}  a4 {[%clk 0:02:07]} 16. b4 {[%clk 0:02:18]}  a3 {[%clk 0:02:07]} 17. Qc2 {[%clk 0:02:01]}  Na6 {[%clk 0:02:04]} 18. b5 {[%clk 0:01:59]}  Nb4 {[%clk 0:02:04]} 19. Qb3 {[%clk 0:01:47]}  c5 {[%clk 0:02:04]} 20. Rab1 {[%clk 0:01:38]}  Be6 {[%clk 0:01:58]} 21. d4 {[%clk 0:01:38]}  b6 {[%clk 0:01:55]} 22. Ne5 {[%clk 0:01:35]}  Bf5 {[%clk 0:01:50]} 23. Rbc1 {[%clk 0:01:23]}  c4 {[%clk 0:01:50]} 24. Nxc4 {[%clk 0:01:16]}  dxc4 {[%clk 0:01:51]} 25. Qxc4 {[%clk 0:01:16]}  Rac8 {[%clk 0:01:46]} 26. Qe2 {[%clk 0:01:06]}  Ne4 {[%clk 0:01:40]} 27. Nxe4 {[%clk 0:00:57]}  Bxe4 {[%clk 0:01:41]} 28. f3 {[%clk 0:00:36]}  Bd3 {[%clk 0:01:35]} 29. Qd2 {[%clk 0:00:19]}  Bc4 {[%clk 0:01:35]} 30. e4 {[%clk 0:00:14]}  Bxa2 {[%clk 0:01:34]} 31. d5 {[%clk 0:00:14]}  Qd6 {[%clk 0:01:30]} 32. f4 {[%clk 0:00:12]}  Bb3 {[%clk 0:01:22]} 33. e5 {[%clk 0:00:12]}  Qf8 {[%clk 0:01:22]} 34. Re1 {[%clk 0:00:06]}  Nc2 {[%clk 0:01:20]} 35. Rf1 {[%clk 0:00:02]}  Qc5+ {[%clk 0:01:18]} 36. Kh2 {[%clk 0:00:01]}  a2 {[%clk 0:01:14]} 37. d6 {[%clk 0:00:01]}  Red8 {[%clk 0:01:14]} 38. Be4 {[%clk 0:00:02]}  Qd4 {[%clk 0:01:03]} 0-1


[Site "https://www.chess.com"]

[Event "Titled Tuesday Blitz November 30 2021"]
[White "Awatramani, Janak"]
[Black "Klabis, Rokas"]
[WhiteFideId "2608359"]
[BlackFideId "12805246"]
[WhiteElo "2815"]
[BlackElo "2255"]
[Result "1-0"]
[Round "03"]
[TimeControl "180+1"]
[Date "2021.11.30"]
[WhiteClock "0:01:04"]
[BlackClock "0:01:07"]

1. e4 {[%clk 0:03:00]}  e5 {[%clk 0:02:59]} 2. Nf3 {[%clk 0:03:00]}  Nc6 {[%clk 0:02:59]} 3. Bc4 {[%clk 0:03:01]}  Nf6 {[%clk 0:02:57]} 4. d3 {[%clk 0:03:01]}  d6 {[%clk 0:02:55]} 5. Ng5 {[%clk 0:02:56]}  d5 {[%clk 0:02:55]} 6. exd5 {[%clk 0:02:52]}  Na5 {[%clk 0:02:55]} 7. Nc3 {[%clk 0:02:51]}  h6 {[%clk 0:02:53]} 8. Nge4 {[%clk 0:02:50]}  Bb4 {[%clk 0:02:49]} 9. O-O {[%clk 0:02:47]}  Bxc3 {[%clk 0:02:39]} 10. Nxc3 {[%clk 0:02:45]}  O-O {[%clk 0:02:38]} 11. Re1 {[%clk 0:02:44]}  Re8 {[%clk 0:02:37]} 12. Qf3 {[%clk 0:02:35]}  a6 {[%clk 0:02:30]} 13. a4 {[%clk 0:02:33]}  Nxc4 {[%clk 0:02:29]} 14. dxc4 {[%clk 0:02:33]}  Qd6 {[%clk 0:02:20]} 15. b3 {[%clk 0:02:27]}  Bd7 {[%clk 0:02:09]} 16. Ba3 {[%clk 0:02:13]}  Qb6 {[%clk 0:02:05]} 17. Ne4 {[%clk 0:02:00]}  Nxe4 {[%clk 0:02:02]} 18. Rxe4 {[%clk 0:01:59]}  Qg6 {[%clk 0:02:00]} 19. Rae1 {[%clk 0:01:56]}  f6 {[%clk 0:02:00]} 20. Qg3 {[%clk 0:01:48]}  Bf5 {[%clk 0:01:39]} 21. Qxg6 {[%clk 0:01:45]}  Bxg6 {[%clk 0:01:40]} 22. R4e2 {[%clk 0:01:46]}  b5 {[%clk 0:01:40]} 23. c5 {[%clk 0:01:33]}  Kf7 {[%clk 0:01:38]} 24. Rd2 {[%clk 0:01:22]}  Red8 {[%clk 0:01:35]} 25. g3 {[%clk 0:01:14]}  Rd7 {[%clk 0:01:11]} 26. f4 {[%clk 0:01:09]}  exf4 {[%clk 0:01:12]} 27. gxf4 {[%clk 0:01:09]}  Rad8 {[%clk 0:01:12]} 28. c4 {[%clk 0:01:09]}  bxa4 {[%clk 0:01:07]} 29. c6 {[%clk 0:01:05]}  axb3 {[%clk 0:01:07]} 30. cxd7 {[%clk 0:01:04]} 1-0


[Site "https://www.chess.com"]

[Event "Titled Tuesday Blitz November 30 2021"]
[White "Azarov, Sergei"]
[Black "Atakishiyev, Elmar"]
[WhiteFideId "13501470"]
[BlackFideId "13410547"]
[WhiteElo "2494"]
[BlackElo "2088"]
[Result "1/2-1/2"]
[Round "03"]
[TimeControl "180+1"]
[Date "2021.11.30"]
[WhiteClock "0:00:10"]
[BlackClock "0:01:14"]

1. e4 {[%clk 0:03:00]}  e6 {[%clk 0:03:00]} 2. d4 {[%clk 0:03:00]}  d5 {[%clk 0:03:00]} 3. Nd2 {[%clk 0:03:01]}  dxe4 {[%clk 0:03:00]} 4. Nxe4 {[%clk 0:03:00]}  Nd7 {[%clk 0:03:01]} 5. Nf3 {[%clk 0:03:00]}  Ngf6 {[%clk 0:03:01]} 6. Nxf6+ {[%clk 0:03:00]}  Nxf6 {[%clk 0:03:02]} 7. Ne5 {[%clk 0:02:59]}  c5 {[%clk 0:02:53]} 8. Bb5+ {[%clk 0:02:52]}  Nd7 {[%clk 0:02:53]} 9. Qf3 {[%clk 0:02:23]}  f6 {[%clk 0:02:44]} 10. Bxd7+ {[%clk 0:02:13]}  Bxd7 {[%clk 0:02:42]} 11. Qh5+ {[%clk 0:02:13]}  g6 {[%clk 0:02:42]} 12. Nxg6 {[%clk 0:02:11]}  hxg6 {[%clk 0:02:38]} 13. Qxh8 {[%clk 0:02:11]}  cxd4 {[%clk 0:02:39]} 14. O-O {[%clk 0:02:01]}  e5 {[%clk 0:02:28]} 15. Bh6 {[%clk 0:01:38]}  Qe7 {[%clk 0:02:26]} 16. Bxf8 {[%clk 0:01:35]}  Qxf8 {[%clk 0:02:27]} 17. Qxf8+ {[%clk 0:01:35]}  Kxf8 {[%clk 0:02:28]} 18. f4 {[%clk 0:01:35]}  Bb5 {[%clk 0:02:20]} 19. fxe5 {[%clk 0:01:32]}  Bxf1 {[%clk 0:02:18]} 20. Rxf1 {[%clk 0:01:32]}  f5 {[%clk 0:02:19]} 21. g4 {[%clk 0:01:13]}  Rc8 {[%clk 0:02:17]} 22. gxf5 {[%clk 0:01:13]}  Rxc2 {[%clk 0:02:16]} 23. fxg6+ {[%clk 0:01:06]}  Kg7 {[%clk 0:02:16]} 24. e6 {[%clk 0:00:46]}  d3 {[%clk 0:02:11]} 25. e7 {[%clk 0:00:37]}  Re2 {[%clk 0:02:10]} 26. Rd1 {[%clk 0:00:34]}  Rxe7 {[%clk 0:02:06]} 27. Rxd3 {[%clk 0:00:34]}  Kxg6 {[%clk 0:02:07]} 28. Kf2 {[%clk 0:00:32]}  Kf6 {[%clk 0:02:05]} 29. Rf3+ {[%clk 0:00:31]}  Kg5 {[%clk 0:02:04]} 30. Kg3 {[%clk 0:00:29]}  Re2 {[%clk 0:01:58]} 31. Rb3 {[%clk 0:00:24]}  b6 {[%clk 0:01:56]} 32. Rb5+ {[%clk 0:00:24]}  Kg6 {[%clk 0:01:54]} 33. h4 {[%clk 0:00:24]}  Rd2 {[%clk 0:01:52]} 34. h5+ {[%clk 0:00:23]}  Kh6 {[%clk 0:01:52]} 35. Kf4 {[%clk 0:00:22]}  Rd4+ {[%clk 0:01:51]} 36. Ke5 {[%clk 0:00:20]}  Ra4 {[%clk 0:01:48]} 37. a3 {[%clk 0:00:20]}  Kxh5 {[%clk 0:01:48]} 38. Kd6+ {[%clk 0:00:20]}  Kg6 {[%clk 0:01:48]} 39. Kc6 {[%clk 0:00:20]}  Kf6 {[%clk 0:01:47]} 40. Kb7 {[%clk 0:00:20]}  Ke6 {[%clk 0:01:47]} 41. Rb4 {[%clk 0:00:19]}  Ra5 {[%clk 0:01:45]} 42. a4 {[%clk 0:00:20]}  Kd6 {[%clk 0:01:44]} 43. b3 {[%clk 0:00:17]}  Kd5 {[%clk 0:01:14]} 44. Rh4 {[%clk 0:00:16]}  b5 {[%clk 0:01:14]} 45. Rh5+ {[%clk 0:00:15]}  Kd4 {[%clk 0:01:14]} 46. Rxb5 {[%clk 0:00:13]}  Rxb5+ {[%clk 0:01:14]} 47. axb5 {[%clk 0:00:12]}  Kc5 {[%clk 0:01:14]} 48. Ka6 {[%clk 0:00:10]}  Kb4 {[%clk 0:01:13]} 49. Kxa7 {[%clk 0:00:09]}  Kxb5 {[%clk 0:01:13]} 50. Kb7 {[%clk 0:00:09]}  Kb4 {[%clk 0:01:14]} 51. Kb6 {[%clk 0:00:10]}  Kxb3 {[%clk 0:01:14]} 1/2-1/2


[Site "https://www.chess.com"]

[Event "Titled Tuesday Blitz November 30 2021"]
[White "Costachi, Mihnea"]
[Black "Radovic, Janko"]
[WhiteFideId "1217518"]
[BlackFideId "911518"]
[WhiteElo "2482"]
[BlackElo "2293"]
[Result "1-0"]
[Round "03"]
[TimeControl "180+1"]
[Date "2021.11.30"]
[WhiteClock "0:01:36"]
[BlackClock "0:00:28"]

1. Nf3 {[%clk 0:03:00]}  d5 {[%clk 0:02:59]} 2. g3 {[%clk 0:02:59]}  Nf6 {[%clk 0:02:58]} 3. Bg2 {[%clk 0:02:59]}  e6 {[%clk 0:02:59]} 4. O-O {[%clk 0:03:00]}  Be7 {[%clk 0:02:59]} 5. b3 {[%clk 0:03:01]}  O-O {[%clk 0:02:59]} 6. Bb2 {[%clk 0:03:01]}  c5 {[%clk 0:02:58]} 7. d3 {[%clk 0:03:02]}  Nc6 {[%clk 0:02:58]} 8. Ne5 {[%clk 0:03:03]}  Nxe5 {[%clk 0:02:53]} 9. Bxe5 {[%clk 0:03:02]}  Nd7 {[%clk 0:02:53]} 10. Bb2 {[%clk 0:03:03]}  Bf6 {[%clk 0:02:53]} 11. Qc1 {[%clk 0:03:03]}  Bxb2 {[%clk 0:02:50]} 12. Qxb2 {[%clk 0:03:04]}  Qf6 {[%clk 0:02:49]} 13. Qxf6 {[%clk 0:03:04]}  Nxf6 {[%clk 0:02:49]} 14. Nd2 {[%clk 0:03:05]}  Bd7 {[%clk 0:02:44]} 15. e4 {[%clk 0:03:05]}  Bc6 {[%clk 0:02:43]} 16. Rfe1 {[%clk 0:03:05]}  Rfd8 {[%clk 0:02:39]} 17. a4 {[%clk 0:03:04]}  b6 {[%clk 0:02:32]} 18. f4 {[%clk 0:03:03]}  a6 {[%clk 0:02:29]} 19. h3 {[%clk 0:03:01]}  h6 {[%clk 0:02:28]} 20. g4 {[%clk 0:03:01]}  b5 {[%clk 0:02:22]} 21. axb5 {[%clk 0:03:00]}  axb5 {[%clk 0:02:22]} 22. e5 {[%clk 0:03:00]}  Nd7 {[%clk 0:02:19]} 23. Kf2 {[%clk 0:02:55]}  Nb6 {[%clk 0:02:17]} 24. c3 {[%clk 0:02:49]}  b4 {[%clk 0:01:46]} 25. cxb4 {[%clk 0:02:47]}  cxb4 {[%clk 0:01:46]} 26. d4 {[%clk 0:02:47]}  Bb5 {[%clk 0:01:42]} 27. Bf1 {[%clk 0:02:46]}  Bxf1 {[%clk 0:01:41]} 28. Rxf1 {[%clk 0:02:47]}  Rdc8 {[%clk 0:01:38]} 29. Rxa8 {[%clk 0:02:39]}  Rxa8 {[%clk 0:01:26]} 30. Rc1 {[%clk 0:02:39]}  Rc8 {[%clk 0:01:17]} 31. Ra1 {[%clk 0:02:37]}  Ra8 {[%clk 0:01:17]} 32. Rxa8+ {[%clk 0:02:36]}  Nxa8 {[%clk 0:01:17]} 33. Nf3 {[%clk 0:02:30]}  Kf8 {[%clk 0:01:11]} 34. Ne1 {[%clk 0:02:30]}  Nc7 {[%clk 0:01:11]} 35. Nd3 {[%clk 0:02:30]}  Na6 {[%clk 0:01:12]} 36. f5 {[%clk 0:02:30]}  Ke7 {[%clk 0:01:12]} 37. Kf3 {[%clk 0:02:29]}  Kd7 {[%clk 0:01:11]} 38. h4 {[%clk 0:02:27]}  Ke7 {[%clk 0:01:09]} 39. Kf4 {[%clk 0:02:27]}  Kd7 {[%clk 0:01:09]} 40. h5 {[%clk 0:02:12]}  Ke7 {[%clk 0:01:07]} 41. g5 {[%clk 0:02:09]}  hxg5+ {[%clk 0:01:00]} 42. Kxg5 {[%clk 0:02:10]}  Nc7 {[%clk 0:00:48]} 43. Nxb4 {[%clk 0:01:57]}  Nb5 {[%clk 0:00:48]} 44. Nc6+ {[%clk 0:01:58]}  Kd7 {[%clk 0:00:46]} 45. f6 {[%clk 0:01:58]}  gxf6+ {[%clk 0:00:39]} 46. Kxf6 {[%clk 0:01:57]}  Kxc6 {[%clk 0:00:31]} 47. h6 {[%clk 0:01:57]}  Nxd4 {[%clk 0:00:32]} 48. h7 {[%clk 0:01:57]}  Nxb3 {[%clk 0:00:31]} 49. h8=Q {[%clk 0:01:57]}  Nc5 {[%clk 0:00:32]} 50. Qe8+ {[%clk 0:01:43]}  Kb6 {[%clk 0:00:28]} 51. Kxf7 {[%clk 0:01:36]} 1-0


[Site "https://www.chess.com"]

[Event "Titled Tuesday Blitz November 30 2021"]
[White "Gasanov, Eldar"]
[Black "Khabinets, Ivan"]
[WhiteFideId "14104466"]
[BlackFideId "14115980"]
[WhiteElo "2454"]
[BlackElo "2114"]
[Result "1-0"]
[Round "03"]
[TimeControl "180+1"]
[Date "2021.11.30"]
[WhiteClock "0:00:05"]
[BlackClock "0:00:06"]

1. d4 {[%clk 0:03:00]}  Nf6 {[%clk 0:02:59]} 2. c4 {[%clk 0:02:47]}  e6 {[%clk 0:02:59]} 3. Nc3 {[%clk 0:02:45]}  Bb4 {[%clk 0:02:59]} 4. Nf3 {[%clk 0:02:46]}  O-O {[%clk 0:02:58]} 5. Bg5 {[%clk 0:02:45]}  c5 {[%clk 0:02:57]} 6. Rc1 {[%clk 0:02:44]}  d6 {[%clk 0:02:53]} 7. e3 {[%clk 0:02:42]}  h6 {[%clk 0:02:53]} 8. Bh4 {[%clk 0:02:41]}  b6 {[%clk 0:02:51]} 9. Bd3 {[%clk 0:02:39]}  Bb7 {[%clk 0:02:51]} 10. O-O {[%clk 0:02:39]}  Nbd7 {[%clk 0:02:39]} 11. Nb5 {[%clk 0:01:58]}  cxd4 {[%clk 0:02:18]} 12. a3 {[%clk 0:01:52]}  a6 {[%clk 0:02:18]} 13. Nbxd4 {[%clk 0:01:42]}  Bc5 {[%clk 0:02:18]} 14. b4 {[%clk 0:01:39]}  Bxd4 {[%clk 0:02:15]} 15. exd4 {[%clk 0:01:40]}  e5 {[%clk 0:01:54]} 16. Bf5 {[%clk 0:01:33]}  Qc7 {[%clk 0:01:34]} 17. d5 {[%clk 0:00:56]}  a5 {[%clk 0:01:28]} 18. Nd2 {[%clk 0:00:51]}  axb4 {[%clk 0:01:16]} 19. axb4 {[%clk 0:00:51]}  b5 {[%clk 0:01:17]} 20. c5 {[%clk 0:00:41]}  dxc5 {[%clk 0:01:13]} 21. bxc5 {[%clk 0:00:40]}  Bxd5 {[%clk 0:00:52]} 22. Qe2 {[%clk 0:00:29]}  Qc6 {[%clk 0:00:48]} 23. f3 {[%clk 0:00:28]}  Ra2 {[%clk 0:00:42]} 24. Qe3 {[%clk 0:00:24]}  Be6 {[%clk 0:00:35]} 25. Bb1 {[%clk 0:00:23]}  Ra4 {[%clk 0:00:33]} 26. Ne4 {[%clk 0:00:23]}  Nd5 {[%clk 0:00:29]} 27. Qf2 {[%clk 0:00:21]}  f5 {[%clk 0:00:26]} 28. Nd6 {[%clk 0:00:21]}  Rc4 {[%clk 0:00:25]} 29. Bd3 {[%clk 0:00:19]}  Rxc5 {[%clk 0:00:24]} 30. Rxc5 {[%clk 0:00:14]}  Nxc5 {[%clk 0:00:25]} 31. Rc1 {[%clk 0:00:11]}  Qxd6 {[%clk 0:00:15]} 32. Qxc5 {[%clk 0:00:10]}  Qxc5+ {[%clk 0:00:15]} 33. Rxc5 {[%clk 0:00:11]}  b4 {[%clk 0:00:16]} 34. Rc6 {[%clk 0:00:10]}  Nf4 {[%clk 0:00:13]} 35. Bf1 {[%clk 0:00:06]}  b3 {[%clk 0:00:11]} 36. Rb6 {[%clk 0:00:06]}  Bd5 {[%clk 0:00:09]} 37. g3 {[%clk 0:00:06]}  Ne6 {[%clk 0:00:10]} 38. Rb5 {[%clk 0:00:04]}  Bxf3 {[%clk 0:00:09]} 39. Bc4 {[%clk 0:00:05]}  Re8 {[%clk 0:00:07]} 40. Rxe5 {[%clk 0:00:05]}  Kf7 {[%clk 0:00:08]} 41. Rxf5+ {[%clk 0:00:05]}  Kg6 {[%clk 0:00:07]} 42. Rxf3 {[%clk 0:00:06]}  b2 {[%clk 0:00:08]} 43. Rb3 {[%clk 0:00:06]}  Ng5 {[%clk 0:00:03]} 44. Rxb2 {[%clk 0:00:03]}  Nf3+ {[%clk 0:00:03]} 45. Kg2 {[%clk 0:00:02]}  Nxh4+ {[%clk 0:00:03]} 46. gxh4 {[%clk 0:00:03]}  Re3 {[%clk 0:00:02]} 47. Be2 {[%clk 0:00:02]}  Kf6 {[%clk 0:00:01]} 48. h5 {[%clk 0:00:03]}  Kf7 {[%clk 0:00:01]} 49. Bf3 {[%clk 0:00:03]}  Re5 {[%clk 0:00:02]} 50. Rf2 {[%clk 0:00:02]}  Rg5+ {[%clk 0:00:03]} 51. Kh3 {[%clk 0:00:02]}  Kg8 {[%clk 0:00:02]} 52. Bg4 {[%clk 0:00:03]}  Re5 {[%clk 0:00:02]} 53. Kh4 {[%clk 0:00:03]}  Re7 {[%clk 0:00:03]} 54. Rf5 {[%clk 0:00:03]}  Ra7 {[%clk 0:00:03]} 55. Rd5 {[%clk 0:00:02]}  Re7 {[%clk 0:00:03]} 56. Rd8+ {[%clk 0:00:03]}  Kh7 {[%clk 0:00:04]} 57. Rd7 {[%clk 0:00:03]}  Rxd7 {[%clk 0:00:04]} 58. Bxd7 {[%clk 0:00:04]}  Kg8 {[%clk 0:00:05]} 59. Bf5 {[%clk 0:00:03]}  Kh8 {[%clk 0:00:05]} 60. Bg6 {[%clk 0:00:03]}  Kg8 {[%clk 0:00:06]} 61. Kg4 {[%clk 0:00:04]}  Kh8 {[%clk 0:00:05]} 62. Kf5 {[%clk 0:00:05]}  Kg8 {[%clk 0:00:06]} 63. Ke6 {[%clk 0:00:05]}  Kh8 {[%clk 0:00:07]} 64. Ke7 {[%clk 0:00:05]}  Kg8 {[%clk 0:00:08]} 65. Bf5 {[%clk 0:00:05]}  Kh8 {[%clk 0:00:08]} 66. Kf7 {[%clk 0:00:04]}  g5 {[%clk 0:00:06]} 67. hxg6 {[%clk 0:00:05]} 1-0


[Site "https://www.chess.com"]

[Event "Titled Tuesday Blitz November 30 2021"]
[White "Iljiushenok, Ilia"]
[Black "De Silva, L M S T"]
[WhiteFideId "24105074"]
[BlackFideId "9953698"]
[WhiteElo "2578"]
[BlackElo "1621"]
[Result "1-0"]
[Round "03"]
[TimeControl "180+1"]
[Date "2021.11.30"]
[WhiteClock "0:00:34"]
[BlackClock "0:00:51"]

1. e4 {[%clk 0:03:00]}  e5 {[%clk 0:02:59]} 2. Nc3 {[%clk 0:02:59]}  Nf6 {[%clk 0:02:59]} 3. Bc4 {[%clk 0:02:57]}  Nc6 {[%clk 0:02:59]} 4. d3 {[%clk 0:02:57]}  Bc5 {[%clk 0:02:59]} 5. f4 {[%clk 0:02:55]}  d6 {[%clk 0:03:00]} 6. Nf3 {[%clk 0:02:55]}  Be6 {[%clk 0:02:57]} 7. Bxe6 {[%clk 0:02:43]}  fxe6 {[%clk 0:02:58]} 8. fxe5 {[%clk 0:02:42]}  dxe5 {[%clk 0:02:59]} 9. Bg5 {[%clk 0:02:42]}  Qd7 {[%clk 0:02:55]} 10. Qd2 {[%clk 0:02:28]}  h6 {[%clk 0:02:53]} 11. Bxf6 {[%clk 0:02:27]}  gxf6 {[%clk 0:02:53]} 12. O-O-O {[%clk 0:02:27]}  O-O-O {[%clk 0:02:54]} 13. Kb1 {[%clk 0:02:27]}  Rdf8 {[%clk 0:02:53]} 14. Rhf1 {[%clk 0:02:24]}  a6 {[%clk 0:02:53]} 15. g3 {[%clk 0:02:23]}  Nd4 {[%clk 0:02:50]} 16. Qg2 {[%clk 0:02:21]}  Nxf3 {[%clk 0:02:50]} 17. Qxf3 {[%clk 0:02:21]}  h5 {[%clk 0:02:48]} 18. a3 {[%clk 0:02:03]}  Qc6 {[%clk 0:02:46]} 19. Na2 {[%clk 0:02:00]}  Qb6 {[%clk 0:02:44]} 20. Ka1 {[%clk 0:01:59]}  f5 {[%clk 0:02:43]} 21. exf5 {[%clk 0:01:54]}  exf5 {[%clk 0:02:44]} 22. Qd5 {[%clk 0:01:52]}  Kb8 {[%clk 0:02:34]} 23. Rde1 {[%clk 0:01:42]}  e4 {[%clk 0:01:46]} 24. dxe4 {[%clk 0:01:36]}  fxe4 {[%clk 0:01:47]} 25. Qxe4 {[%clk 0:01:31]}  Bd4 {[%clk 0:01:41]} 26. Nb4 {[%clk 0:01:27]}  a5 {[%clk 0:01:37]} 27. Nd3 {[%clk 0:01:26]}  Bg7 {[%clk 0:01:31]} 28. Qc4 {[%clk 0:01:23]}  Qd6 {[%clk 0:01:29]} 29. Ka2 {[%clk 0:01:20]}  Re8 {[%clk 0:01:26]} 30. Rxe8+ {[%clk 0:01:15]}  Rxe8 {[%clk 0:01:27]} 31. Rf5 {[%clk 0:01:15]}  b6 {[%clk 0:01:25]} 32. Rxh5 {[%clk 0:01:14]}  Re2 {[%clk 0:01:24]} 33. Rd5 {[%clk 0:01:06]}  Qe7 {[%clk 0:01:18]} 34. Qc6 {[%clk 0:00:56]}  Qf7 {[%clk 0:01:13]} 35. Nf4 {[%clk 0:00:50]}  Rd2 {[%clk 0:01:11]} 36. Ne6 {[%clk 0:00:45]}  Rxd5 {[%clk 0:01:05]} 37. Qxd5 {[%clk 0:00:45]}  Bh8 {[%clk 0:01:00]} 38. c3 {[%clk 0:00:43]}  Bf6 {[%clk 0:00:58]} 39. h4 {[%clk 0:00:42]}  a4 {[%clk 0:00:53]} 40. h5 {[%clk 0:00:41]}  Bxc3 {[%clk 0:00:53]} 41. Qd8+ {[%clk 0:00:36]}  Kb7 {[%clk 0:00:52]} 42. Qxc7+ {[%clk 0:00:35]}  Qxc7 {[%clk 0:00:50]} 43. Nxc7 {[%clk 0:00:36]}  Bd4 {[%clk 0:00:51]} 44. Ne6 {[%clk 0:00:34]} 1-0


[Site "https://www.chess.com"]

[Event "Titled Tuesday Blitz November 30 2021"]
[White "Ivanisevic, Ivan"]
[Black "Deac, Bogdan-Daniel"]
[WhiteFideId "912417"]
[BlackFideId "1226380"]
[WhiteElo "2499"]
[BlackElo "2605"]
[Result "0-1"]
[Round "03"]
[TimeControl "180+1"]
[Date "2021.11.30"]
[WhiteClock "0:00:01"]
[BlackClock "0:00:02"]

1. d4 {[%clk 0:02:58]}  Nf6 {[%clk 0:03:00]} 2. c4 {[%clk 0:02:59]}  g6 {[%clk 0:03:00]} 3. Nc3 {[%clk 0:02:58]}  d5 {[%clk 0:03:00]} 4. e3 {[%clk 0:02:58]}  Bg7 {[%clk 0:02:59]} 5. cxd5 {[%clk 0:02:58]}  Nxd5 {[%clk 0:02:59]} 6. Bc4 {[%clk 0:02:59]}  Nb6 {[%clk 0:02:59]} 7. Bb3 {[%clk 0:02:59]}  O-O {[%clk 0:02:55]} 8. Nf3 {[%clk 0:02:59]}  c5 {[%clk 0:02:55]} 9. O-O {[%clk 0:02:59]}  N8d7 {[%clk 0:02:52]} 10. Re1 {[%clk 0:02:55]}  e6 {[%clk 0:02:38]} 11. a4 {[%clk 0:02:54]}  cxd4 {[%clk 0:02:32]} 12. exd4 {[%clk 0:02:54]}  Nf6 {[%clk 0:02:33]} 13. Bg5 {[%clk 0:02:51]}  h6 {[%clk 0:02:33]} 14. Bh4 {[%clk 0:02:51]}  Nbd5 {[%clk 0:02:23]} 15. Nxd5 {[%clk 0:02:43]}  exd5 {[%clk 0:02:22]} 16. Ne5 {[%clk 0:02:43]}  Be6 {[%clk 0:02:21]} 17. a5 {[%clk 0:02:43]}  Rc8 {[%clk 0:02:11]} 18. Nxg6 {[%clk 0:02:41]}  Re8 {[%clk 0:01:59]} 19. Rxe6 {[%clk 0:02:42]}  Rxe6 {[%clk 0:01:57]} 20. Ne5 {[%clk 0:02:33]}  Qd6 {[%clk 0:01:51]} 21. h3 {[%clk 0:02:21]}  Qb4 {[%clk 0:01:16]} 22. Bxf6 {[%clk 0:01:57]}  Rxf6 {[%clk 0:01:14]} 23. Bxd5 {[%clk 0:01:56]}  Qxb2 {[%clk 0:01:11]} 24. Rb1 {[%clk 0:01:11]}  Qxf2+ {[%clk 0:00:49]} 25. Kh1 {[%clk 0:01:11]}  Qf4 {[%clk 0:00:26]} 26. Nf3 {[%clk 0:00:30]}  b6 {[%clk 0:00:23]} 27. a6 {[%clk 0:00:27]}  Rd8 {[%clk 0:00:22]} 28. Bb3 {[%clk 0:00:26]}  Rfd6 {[%clk 0:00:19]} 29. Qe2 {[%clk 0:00:20]}  Bxd4 {[%clk 0:00:16]} 30. Rf1 {[%clk 0:00:20]}  Bg7 {[%clk 0:00:16]} 31. Nh2 {[%clk 0:00:16]}  Qg5 {[%clk 0:00:15]} 32. Bxf7+ {[%clk 0:00:15]}  Kh8 {[%clk 0:00:15]} 33. Bc4 {[%clk 0:00:14]}  Rd2 {[%clk 0:00:13]} 34. Qe4 {[%clk 0:00:12]}  R2d4 {[%clk 0:00:10]} 35. Qe2 {[%clk 0:00:11]}  Rf4 {[%clk 0:00:09]} 36. Nf3 {[%clk 0:00:11]}  Qf6 {[%clk 0:00:08]} 37. Bb3 {[%clk 0:00:08]}  Qc6 {[%clk 0:00:06]} 38. Rd1 {[%clk 0:00:07]}  Rdf8 {[%clk 0:00:05]} 39. Bd5 {[%clk 0:00:06]}  Qg6 {[%clk 0:00:05]} 40. Bb3 {[%clk 0:00:04]}  Qg3 {[%clk 0:00:05]} 41. Bd5 {[%clk 0:00:03]}  Qg6 {[%clk 0:00:03]} 42. Rf1 {[%clk 0:00:03]}  Qd6 {[%clk 0:00:03]} 43. Bb3 {[%clk 0:00:02]}  Qc5 {[%clk 0:00:04]} 44. Bc2 {[%clk 0:00:02]}  b5 {[%clk 0:00:04]} 45. Qd3 {[%clk 0:00:02]}  R4f5 {[%clk 0:00:03]} 46. Qd2 {[%clk 0:00:01]}  Qc4 {[%clk 0:00:02]} 0-1


[Site "https://www.chess.com"]